[Event "Live Chess"]
[Site "Chess.com"]
[Date "2010.12.10"]
[Round "-"]
[White "hipposcottimus"]
[Black "Horst77"]
[Result "0-1"]
[CurrentPosition "7r/pp1k1pp1/1n2p1p1/3p4/P2P1P2/BP3Q2/2r3P1/2R2RKq w - -"]
[Timezone "UTC"]
[ECO "B10"]
[ECOUrl "https://www.chess.com/openings/Caro-Kann-Defense-2.Nf3-d5"]
[UTCDate "2010.12.10"]
[UTCTime "18:50:36"]
[WhiteElo "1679"]
[BlackElo "1750"]
[TimeControl "60"]
[Termination "Horst77 won by checkmate"]
[StartTime "18:50:36"]
[EndDate "2010.12.10"]
[EndTime "18:52:21"]
[Link "https://www.chess.com/game/live/75983168"]

1. e4 {[%clk 0:01:00]} 1... c6 {[%clk 0:01:00]} 2. Nf3 {[%clk 0:00:59.8]} 2... d5 {[%clk 0:00:59.2]} 3. e5 {[%clk 0:00:59.5]} 3... Bf5 {[%clk 0:00:57.1]} 4. d4 {[%clk 0:00:59.2]} 4... e6 {[%clk 0:00:55.3]} 5. Nh4 {[%clk 0:00:58.9]} 5... Bg6 {[%clk 0:00:53.4]} 6. Nxg6 {[%clk 0:00:57.4]} 6... hxg6 {[%clk 0:00:52.7]} 7. c4 {[%clk 0:00:55.8]} 7... dxc4 {[%clk 0:00:49.1]} 8. Bxc4 {[%clk 0:00:54.1]} 8... Ne7 {[%clk 0:00:48.2]} 9. Nc3 {[%clk 0:00:53.1]} 9... Nd5 {[%clk 0:00:47.2]} 10. O-O {[%clk 0:00:50.3]} 10... Nd7 {[%clk 0:00:46.3]} 11. Bxd5 {[%clk 0:00:49.2]} 11... cxd5 {[%clk 0:00:44.8]} 12. f4 {[%clk 0:00:49]} 12... Bb4 {[%clk 0:00:42.1]} 13. Qf3 {[%clk 0:00:46]} 13... Nb6 {[%clk 0:00:39.9]} 14. Nb5 {[%clk 0:00:39.3]} 14... Qh4 {[%clk 0:00:37.6]} 15. Nd6+ {[%clk 0:00:36.6]} 15... Ke7 {[%clk 0:00:36.1]} 16. a3 {[%clk 0:00:33.2]} 16... Qxh2+ {[%clk 0:00:34.2]} 17. Kf2 {[%clk 0:00:30.7]} 17... Bxd6 {[%clk 0:00:31.7]} 18. exd6+ {[%clk 0:00:27.7]} 18... Kxd6 {[%clk 0:00:31]} 19. a4 {[%clk 0:00:25.8]} 19... Nc4 {[%clk 0:00:29.1]} 20. b3 {[%clk 0:00:22.8]} 20... Qh4+ {[%clk 0:00:26.7]} 21. Kg1 {[%clk 0:00:19.5]} 21... Nb6 {[%clk 0:00:23.1]} 22. Ba3+ {[%clk 0:00:18.1]} 22... Kd7 {[%clk 0:00:21.3]} 23. Rac1 {[%clk 0:00:15.6]} 23... Rac8 {[%clk 0:00:19.7]} 24. Rcd1 {[%clk 0:00:13.1]} 24... Rc2 {[%clk 0:00:17.2]} 25. Rc1 {[%clk 0:00:12.5]} 25... Qh1# {[%clk 0:00:15.2]} 0-1

[Event "Live Chess"]
[Site "Chess.com"]
[Date "2010.12.10"]
[Round "-"]
[White "Horst77"]
[Black "hipposcottimus"]
[Result "1-0"]
[CurrentPosition "r3r3/pp1bbkpp/3P1p2/2p2q2/2QB4/2N2N2/PP4PP/R3R1K1 b - -"]
[Timezone "UTC"]
[ECO "C65"]
[ECOUrl "https://www.chess.com/openings/Ruy-Lopez-Opening-Berlin-Defense-4.O-O"]
[UTCDate "2010.12.10"]
[UTCTime "18:48:38"]
[WhiteElo "1743"]
[BlackElo "1686"]
[TimeControl "60"]
[Termination "Horst77 won on time"]
[StartTime "18:48:38"]
[EndDate "2010.12.10"]
[EndTime "18:50:20"]
[Link "https://www.chess.com/game/live/75982607"]

1. e4 {[%clk 0:01:00]} 1... e5 {[%clk 0:01:00]} 2. Nf3 {[%clk 0:00:58.3]} 2... Nc6 {[%clk 0:00:59.3]} 3. Bb5 {[%clk 0:00:57.4]} 3... Nf6 {[%clk 0:00:58.1]} 4. O-O {[%clk 0:00:56]} 4... Nd4 {[%clk 0:00:57.1]} 5. Nxe5 {[%clk 0:00:54.1]} 5... Nxb5 {[%clk 0:00:54.7]} 6. d4 {[%clk 0:00:52.3]} 6... Nxe4 {[%clk 0:00:52.4]} 7. Re1 {[%clk 0:00:51]} 7... d5 {[%clk 0:00:48.1]} 8. f3 {[%clk 0:00:49.8]} 8... Be6 {[%clk 0:00:32.5]} 9. fxe4 {[%clk 0:00:48.7]} 9... f6 {[%clk 0:00:32.3]} 10. Nf3 {[%clk 0:00:46.4]} 10... Be7 {[%clk 0:00:30.5]} 11. exd5 {[%clk 0:00:45.2]} 11... Qxd5 {[%clk 0:00:30.1]} 12. Qe2 {[%clk 0:00:41.8]} 12... Kf7 {[%clk 0:00:19]} 13. Be3 {[%clk 0:00:38.4]} 13... Nd6 {[%clk 0:00:17]} 14. c4 {[%clk 0:00:36.3]} 14... Qf5 {[%clk 0:00:13.6]} 15. Nc3 {[%clk 0:00:33.3]} 15... Rhe8 {[%clk 0:00:11.4]} 16. d5 {[%clk 0:00:31.8]} 16... Bd7 {[%clk 0:00:09.7]} 17. Bd4 {[%clk 0:00:30.7]} 17... Nxc4 {[%clk 0:00:02.6]} 18. Qxc4 {[%clk 0:00:29.4]} 18... c5 {[%clk 0:00:00.7]} 19. d6+ {[%clk 0:00:27.4]} 1-0

[Event "Live Chess"]
[Site "Chess.com"]
[Date "2010.12.10"]
[Round "-"]
[White "hipposcottimus"]
[Black "Horst77"]
[Result "1-0"]
[CurrentPosition "3r1rk1/5pq1/p3p3/1p6/8/8/PP1pQ1PP/5R1K b - -"]
[Timezone "UTC"]
[ECO "B10"]
[ECOUrl "https://www.chess.com/openings/Caro-Kann-Defense-2.Nf3-d5"]
[UTCDate "2010.12.10"]
[UTCTime "18:46:06"]
[WhiteElo "1693"]
[BlackElo "1735"]
[TimeControl "60"]
[Termination "hipposcottimus won on time"]
[StartTime "18:46:06"]
[EndDate "2010.12.10"]
[EndTime "18:48:21"]
[Link "https://www.chess.com/game/live/75981923"]

1. e4 {[%clk 0:01:00]} 1... c6 {[%clk 0:01:00]} 2. Nf3 {[%clk 0:00:59.7]} 2... d5 {[%clk 0:00:59.2]} 3. e5 {[%clk 0:00:59.4]} 3... Bf5 {[%clk 0:00:57.2]} 4. d4 {[%clk 0:00:59.2]} 4... e6 {[%clk 0:00:55.8]} 5. Nc3 {[%clk 0:00:58.9]} 5... c5 {[%clk 0:00:55.1]} 6. Bd3 {[%clk 0:00:58.4]} 6... Bxd3 {[%clk 0:00:52.8]} 7. Qxd3 {[%clk 0:00:57]} 7... Nc6 {[%clk 0:00:52.1]} 8. Qb5 {[%clk 0:00:52.7]} 8... Qb6 {[%clk 0:00:49.9]} 9. dxc5 {[%clk 0:00:49.6]} 9... Bxc5 {[%clk 0:00:47.6]} 10. O-O {[%clk 0:00:46.9]} 10... a6 {[%clk 0:00:45.2]} 11. Qa4 {[%clk 0:00:44.1]} 11... Ne7 {[%clk 0:00:42.1]} 12. Be3 {[%clk 0:00:40.7]} 12... Bxe3 {[%clk 0:00:39.6]} 13. fxe3 {[%clk 0:00:40.4]} 13... Qxe3+ {[%clk 0:00:37.6]} 14. Kh1 {[%clk 0:00:40.2]} 14... O-O {[%clk 0:00:36]} 15. Rae1 {[%clk 0:00:31.2]} 15... Qc5 {[%clk 0:00:33.4]} 16. Rd1 {[%clk 0:00:30.7]} 16... b5 {[%clk 0:00:31.8]} 17. Qh4 {[%clk 0:00:25.1]} 17... Ng6 {[%clk 0:00:30]} 18. Qh3 {[%clk 0:00:22.7]} 18... Ncxe5 {[%clk 0:00:28.7]} 19. Ng5 {[%clk 0:00:21.5]} 19... h6 {[%clk 0:00:26.5]} 20. Nf3 {[%clk 0:00:19.5]} 20... Nxf3 {[%clk 0:00:25]} 21. Rxf3 {[%clk 0:00:19.3]} 21... d4 {[%clk 0:00:24.2]} 22. Ne2 {[%clk 0:00:17.4]} 22... Rad8 {[%clk 0:00:20.7]} 23. Nf4 {[%clk 0:00:16.5]} 23... Nxf4 {[%clk 0:00:17.2]} 24. Rxf4 {[%clk 0:00:16.2]} 24... Qxc2 {[%clk 0:00:15.8]} 25. Rdf1 {[%clk 0:00:14.1]} 25... d3 {[%clk 0:00:13.7]} 26. Rg4 {[%clk 0:00:13.1]} 26... Kh8 {[%clk 0:00:12.2]} 27. Rh4 {[%clk 0:00:11.3]} 27... Qd2 {[%clk 0:00:08.4]} 28. Re4 {[%clk 0:00:08.6]} 28... Qg5 {[%clk 0:00:07]} 29. Rg4 {[%clk 0:00:07.4]} 29... Qe5 {[%clk 0:00:05.5]} 30. Rh4 {[%clk 0:00:06.9]} 30... d2 {[%clk 0:00:04]} 31. Rxh6+ {[%clk 0:00:06.1]} 31... gxh6 {[%clk 0:00:03.2]} 32. Qxh6+ {[%clk 0:00:05.8]} 32... Kg8 {[%clk 0:00:02.5]} 33. Qe3 {[%clk 0:00:02]} 33... Qg7 {[%clk 0:00:01.4]} 34. Qe2 {[%clk 0:00:00.9]} 1-0

[Event "Live Chess"]
[Site "Chess.com"]
[Date "2010.12.10"]
[Round "-"]
[White "Marpol"]
[Black "hipposcottimus"]
[Result "1-0"]
[CurrentPosition "3b4/P5pp/1N1p4/3P4/4P3/3k4/2R2PPP/4K3 b - -"]
[Timezone "UTC"]
[ECO "C47"]
[ECOUrl "https://www.chess.com/openings/Four-Knights-Game-Italian-Variation"]
[UTCDate "2010.12.10"]
[UTCTime "18:18:36"]
[WhiteElo "1539"]
[BlackElo "1441"]
[TimeControl "720"]
[Termination "Marpol won by resignation"]
[StartTime "18:18:36"]
[EndDate "2010.12.10"]
[EndTime "18:36:36"]
[Link "https://www.chess.com/game/live/75974590"]

1. e4 {[%clk 0:12:00]} 1... e5 {[%clk 0:12:00]} 2. Nf3 {[%clk 0:11:54.3]} 2... Nc6 {[%clk 0:11:59.2]} 3. Bc4 {[%clk 0:11:51.7]} 3... Nf6 {[%clk 0:11:58.1]} 4. Nc3 {[%clk 0:11:49.2]} 4... b6 {[%clk 0:11:51.6]} 5. a3 {[%clk 0:11:45.4]} 5... Be7 {[%clk 0:11:49.1]} 6. d4 {[%clk 0:11:37.3]} 6... d6 {[%clk 0:11:41.3]} 7. d5 {[%clk 0:11:34.2]} 7... Na5 {[%clk 0:11:40]} 8. Ba2 {[%clk 0:11:27.9]} 8... Ba6 {[%clk 0:11:39.2]} 9. a4 {[%clk 0:11:12.9]} 9... O-O {[%clk 0:11:33.3]} 10. b4 {[%clk 0:11:07.9]} 10... Nc4 {[%clk 0:11:09.6]} 11. b5 {[%clk 0:10:54.2]} 11... c6 {[%clk 0:10:51.2]} 12. Bxc4 {[%clk 0:10:44.1]} 12... cxb5 {[%clk 0:10:49.1]} 13. Bxb5 {[%clk 0:10:33.1]} 13... Bb7 {[%clk 0:10:44.2]} 14. O-O {[%clk 0:10:24.9]} 14... a6 {[%clk 0:10:15.2]} 15. Bd3 {[%clk 0:10:09.4]} 15... Nd7 {[%clk 0:10:10]} 16. Qe2 {[%clk 0:09:58.7]} 16... Nc5 {[%clk 0:10:07.7]} 17. Bc4 {[%clk 0:09:37.3]} 17... Bc8 {[%clk 0:09:59.8]} 18. Be3 {[%clk 0:09:27.8]} 18... f5 {[%clk 0:09:54.8]} 19. Bxc5 {[%clk 0:09:20]} 19... bxc5 {[%clk 0:09:54.3]} 20. exf5 {[%clk 0:09:06.6]} 20... Bxf5 {[%clk 0:09:49]} 21. Bxa6 {[%clk 0:08:46.5]} 21... Qa5 {[%clk 0:09:16.2]} 22. Bd3 {[%clk 0:08:14.7]} 22... Qxc3 {[%clk 0:09:09.5]} 23. Bxf5 {[%clk 0:07:57.3]} 23... Rxf5 {[%clk 0:09:05.1]} 24. Qd3 {[%clk 0:07:45.4]} 24... Qxd3 {[%clk 0:08:23]} 25. cxd3 {[%clk 0:07:39]} 25... Raf8 {[%clk 0:07:52.7]} 26. a5 {[%clk 0:07:29.9]} 26... R5f6 {[%clk 0:07:45.3]} 27. a6 {[%clk 0:07:26.8]} 27... Rg6 {[%clk 0:07:43.5]} 28. a7 {[%clk 0:07:07.7]} 28... Ra8 {[%clk 0:07:35.2]} 29. Rfb1 {[%clk 0:07:03.3]} 29... Rf6 {[%clk 0:07:26.7]} 30. Rb8+ {[%clk 0:06:54.3]} 30... Rf8 {[%clk 0:07:11.1]} 31. Rb7 {[%clk 0:06:41.3]} 31... Rf7 {[%clk 0:07:07]} 32. Rab1 {[%clk 0:06:28.4]} 32... Bf8 {[%clk 0:05:46.5]} 33. Rxf7 {[%clk 0:06:11.4]} 33... Kxf7 {[%clk 0:05:44.9]} 34. Rb7+ {[%clk 0:06:09]} 34... Be7 {[%clk 0:05:29.8]} 35. Ng5+ {[%clk 0:06:03.8]} 35... Kf6 {[%clk 0:05:26.8]} 36. Ne6 {[%clk 0:06:01]} 36... e4 {[%clk 0:05:00.3]} 37. dxe4 {[%clk 0:05:47.2]} 37... c4 {[%clk 0:04:57.8]} 38. Kf1 {[%clk 0:05:43.3]} 38... c3 {[%clk 0:04:52.6]} 39. Ke1 {[%clk 0:05:40.5]} 39... Ke5 {[%clk 0:04:23.2]} 40. Nc7 {[%clk 0:05:02]} 40... Kd4 {[%clk 0:03:15]} 41. Nxa8 {[%clk 0:04:19.9]} 41... c2 {[%clk 0:03:01.1]} 42. Rc7 {[%clk 0:04:02.2]} 42... Kd3 {[%clk 0:02:47.5]} 43. Nb6 {[%clk 0:03:52.7]} 43... Bd8 {[%clk 0:02:37.2]} 44. Rxc2 {[%clk 0:03:45.2]} 1-0

[Event "Live Chess"]
[Site "Chess.com"]
[Date "2010.12.10"]
[Round "-"]
[White "hipposcottimus"]
[Black "hux-2010"]
[Result "1-0"]
[CurrentPosition "8/5r2/5p1p/p5k1/8/1R6/PP3PPP/4R1K1 b - -"]
[Timezone "UTC"]
[ECO "B07"]
[ECOUrl "https://www.chess.com/openings/Pirc-Defense-2.d4-c6-3.Nf3"]
[UTCDate "2010.12.10"]
[UTCTime "18:14:47"]
[WhiteElo "1684"]
[BlackElo "1786"]
[TimeControl "60"]
[Termination "hipposcottimus won by resignation"]
[StartTime "18:14:47"]
[EndDate "2010.12.10"]
[EndTime "18:16:23"]
[Link "https://www.chess.com/game/live/75973645"]

1. e4 {[%clk 0:01:00]} 1... d6 {[%clk 0:01:00]} 2. d4 {[%clk 0:00:58.3]} 2... c6 {[%clk 0:00:59.6]} 3. Nf3 {[%clk 0:00:57.4]} 3... Bd7 {[%clk 0:00:59.2]} 4. c4 {[%clk 0:00:56.7]} 4... Qc7 {[%clk 0:00:58.8]} 5. c5 {[%clk 0:00:56.2]} 5... a6 {[%clk 0:00:58.4]} 6. cxd6 {[%clk 0:00:53.5]} 6... exd6 {[%clk 0:00:57.6]} 7. Be2 {[%clk 0:00:51.6]} 7... Be7 {[%clk 0:00:56.8]} 8. O-O {[%clk 0:00:51.3]} 8... Nf6 {[%clk 0:00:55.8]} 9. Nc3 {[%clk 0:00:51.1]} 9... Ng4 {[%clk 0:00:54.6]} 10. e5 {[%clk 0:00:50.8]} 10... dxe5 {[%clk 0:00:53.3]} 11. dxe5 {[%clk 0:00:50.5]} 11... Be6 {[%clk 0:00:51.5]} 12. Bf4 {[%clk 0:00:50]} 12... O-O {[%clk 0:00:50]} 13. Re1 {[%clk 0:00:48.1]} 13... Rd8 {[%clk 0:00:49.1]} 14. Bd3 {[%clk 0:00:46.8]} 14... Bc4 {[%clk 0:00:46.2]} 15. Ng5 {[%clk 0:00:46.5]} 15... Bxd3 {[%clk 0:00:42.1]} 16. e6 {[%clk 0:00:44.6]} 16... Bf5 {[%clk 0:00:38.7]} 17. Bxc7 {[%clk 0:00:43.5]} 17... Rxd1 {[%clk 0:00:36.5]} 18. Raxd1 {[%clk 0:00:43.3]} 18... fxe6 {[%clk 0:00:33.7]} 19. Bg3 {[%clk 0:00:42.5]} 19... h6 {[%clk 0:00:30.7]} 20. Nxe6 {[%clk 0:00:41.7]} 20... Bxe6 {[%clk 0:00:29]} 21. Rxe6 {[%clk 0:00:41.4]} 21... Bf6 {[%clk 0:00:28.2]} 22. Re8+ {[%clk 0:00:40.2]} 22... Kh7 {[%clk 0:00:26.8]} 23. Ree1 {[%clk 0:00:38.6]} 23... a5 {[%clk 0:00:24]} 24. Ne4 {[%clk 0:00:38.2]} 24... Na6 {[%clk 0:00:22.2]} 25. Nxf6+ {[%clk 0:00:37.1]} 25... Nxf6 {[%clk 0:00:21.3]} 26. Be5 {[%clk 0:00:35]} 26... Nc5 {[%clk 0:00:20.2]} 27. Bxf6 {[%clk 0:00:34.1]} 27... gxf6 {[%clk 0:00:19.6]} 28. Re7+ {[%clk 0:00:33.8]} 28... Kg6 {[%clk 0:00:17.6]} 29. Ree1 {[%clk 0:00:31.8]} 29... Rg8 {[%clk 0:00:15.9]} 30. Rc1 {[%clk 0:00:31.5]} 30... Rf8 {[%clk 0:00:15.2]} 31. Rxc5 {[%clk 0:00:30.4]} 31... b6 {[%clk 0:00:14.8]} 32. Rxc6 {[%clk 0:00:29]} 32... Rf7 {[%clk 0:00:14.3]} 33. Rxb6 {[%clk 0:00:28.6]} 33... Kg5 {[%clk 0:00:13.1]} 34. Rb3 {[%clk 0:00:28.2]} 1-0

[Event "Live Chess"]
[Site "Chess.com"]
[Date "2010.12.10"]
[Round "-"]
[White "hipposcottimus"]
[Black "cyclone007"]
[Result "1-0"]
[CurrentPosition "7r/2k4p/6p1/n4p2/B3pPn1/2P5/P5PP/3R3K b - -"]
[Timezone "UTC"]
[ECO "C50"]
[ECOUrl "https://www.chess.com/openings/Italian-Game"]
[UTCDate "2010.12.10"]
[UTCTime "18:11:55"]
[WhiteElo "1672"]
[BlackElo "1415"]
[TimeControl "60"]
[Termination "hipposcottimus won on time"]
[StartTime "18:11:55"]
[EndDate "2010.12.10"]
[EndTime "18:14:00"]
[Link "https://www.chess.com/game/live/75972770"]

1. e4 {[%clk 0:01:00]} 1... e5 {[%clk 0:01:00]} 2. Nf3 {[%clk 0:00:59.7]} 2... Nc6 {[%clk 0:00:58.4]} 3. Bc4 {[%clk 0:00:59.4]} 3... b6 {[%clk 0:00:57.5]} 4. Nxe5 {[%clk 0:00:57.8]} 4... Qe7 {[%clk 0:00:53.8]} 5. d4 {[%clk 0:00:57.3]} 5... f6 {[%clk 0:00:52.3]} 6. Bf7+ {[%clk 0:00:51.3]} 6... Kd8 {[%clk 0:00:48.3]} 7. d5 {[%clk 0:00:47.7]} 7... Nxe5 {[%clk 0:00:46.7]} 8. Bh5 {[%clk 0:00:45]} 8... g6 {[%clk 0:00:45.2]} 9. Be2 {[%clk 0:00:43.9]} 9... Bb7 {[%clk 0:00:44.3]} 10. Nc3 {[%clk 0:00:43.5]} 10... Kc8 {[%clk 0:00:42.7]} 11. O-O {[%clk 0:00:43.2]} 11... Kb8 {[%clk 0:00:42.7]} 12. f4 {[%clk 0:00:42.9]} 12... Nf7 {[%clk 0:00:39.4]} 13. Kh1 {[%clk 0:00:42.6]} 13... d6 {[%clk 0:00:38.6]} 14. Bf3 {[%clk 0:00:42.3]} 14... Kc8 {[%clk 0:00:37.3]} 15. Ne2 {[%clk 0:00:41]} 15... Bg7 {[%clk 0:00:35.8]} 16. c4 {[%clk 0:00:40.8]} 16... Ngh6 {[%clk 0:00:34.8]} 17. Nc3 {[%clk 0:00:40.3]} 17... f5 {[%clk 0:00:33.5]} 18. e5 {[%clk 0:00:39]} 18... dxe5 {[%clk 0:00:32]} 19. Re1 {[%clk 0:00:38.7]} 19... e4 {[%clk 0:00:30.7]} 20. Na4 {[%clk 0:00:35.4]} 20... Qf6 {[%clk 0:00:28.2]} 21. c5 {[%clk 0:00:34.9]} 21... bxc5 {[%clk 0:00:26.7]} 22. Be2 {[%clk 0:00:33]} 22... a6 {[%clk 0:00:25.9]} 23. Nxc5 {[%clk 0:00:31.5]} 23... c6 {[%clk 0:00:22.9]} 24. Qb3 {[%clk 0:00:30.7]} 24... Rb8 {[%clk 0:00:19.4]} 25. dxc6 {[%clk 0:00:26.4]} 25... Bxc6 {[%clk 0:00:17.5]} 26. Bxa6+ {[%clk 0:00:26.1]} 26... Kc7 {[%clk 0:00:15.7]} 27. Qa4 {[%clk 0:00:22.1]} 27... Bxa4 {[%clk 0:00:14.3]} 28. Nxa4 {[%clk 0:00:19.9]} 28... Nd8 {[%clk 0:00:12.3]} 29. Nc3 {[%clk 0:00:19.4]} 29... Nc6 {[%clk 0:00:11.5]} 30. Nd5+ {[%clk 0:00:18.8]} 30... Kd6 {[%clk 0:00:09.8]} 31. Nxf6 {[%clk 0:00:18.1]} 31... Bxf6 {[%clk 0:00:09.4]} 32. Rd1+ {[%clk 0:00:17.9]} 32... Ke7 {[%clk 0:00:08.1]} 33. Bd2 {[%clk 0:00:17.7]} 33... Rbd8 {[%clk 0:00:07.6]} 34. Bc3 {[%clk 0:00:16.9]} 34... Ng4 {[%clk 0:00:06.6]} 35. Rxd8 {[%clk 0:00:15.2]} 35... Kxd8 {[%clk 0:00:05.4]} 36. Bb5 {[%clk 0:00:15]} 36... Bxc3 {[%clk 0:00:04]} 37. Rd1+ {[%clk 0:00:14.8]} 37... Kc7 {[%clk 0:00:02.3]} 38. bxc3 {[%clk 0:00:14]} 38... Na5 {[%clk 0:00:00.8]} 39. Ba4 {[%clk 0:00:13.7]} 1-0

[Event "Live Chess"]
[Site "Chess.com"]
[Date "2010.12.10"]
[Round "-"]
[White "hipposcottimus"]
[Black "godaekil"]
[Result "1-0"]
[CurrentPosition "8/8/6p1/2k1p3/4p2P/6P1/8/7K b - h3"]
[Timezone "UTC"]
[ECO "B52"]
[ECOUrl "https://www.chess.com/openings/Sicilian-Defense-Canal-Main-Line"]
[UTCDate "2010.12.10"]
[UTCTime "08:53:06"]
[WhiteElo "1669"]
[BlackElo "1589"]
[TimeControl "60"]
[Termination "hipposcottimus won on time"]
[StartTime "08:53:06"]
[EndDate "2010.12.10"]
[EndTime "08:55:27"]
[Link "https://www.chess.com/game/live/75845089"]

1. e4 {[%clk 0:01:00]} 1... c5 {[%clk 0:01:00]} 2. Nf3 {[%clk 0:00:59.7]} 2... d6 {[%clk 0:00:59.6]} 3. Bb5+ {[%clk 0:00:59]} 3... Bd7 {[%clk 0:00:58.3]} 4. Be2 {[%clk 0:00:58.7]} 4... Nc6 {[%clk 0:00:56.8]} 5. d4 {[%clk 0:00:58.5]} 5... cxd4 {[%clk 0:00:55.5]} 6. Nxd4 {[%clk 0:00:58.3]} 6... Nxd4 {[%clk 0:00:54.4]} 7. Qxd4 {[%clk 0:00:58]} 7... Nf6 {[%clk 0:00:53.8]} 8. Bc4 {[%clk 0:00:54]} 8... g6 {[%clk 0:00:52.9]} 9. Nc3 {[%clk 0:00:53.6]} 9... Bh6 {[%clk 0:00:52.1]} 10. Bxh6 {[%clk 0:00:50.7]} 10... Ng4 {[%clk 0:00:50.7]} 11. Bg7 {[%clk 0:00:48.9]} 11... Rg8 {[%clk 0:00:49.4]} 12. Qd5 {[%clk 0:00:47]} 12... Be6 {[%clk 0:00:48.3]} 13. Qxb7 {[%clk 0:00:45.7]} 13... Bxc4 {[%clk 0:00:46.7]} 14. Bd4 {[%clk 0:00:40.7]} 14... Ne5 {[%clk 0:00:45.4]} 15. b3 {[%clk 0:00:37.4]} 15... Be6 {[%clk 0:00:42.4]} 16. O-O {[%clk 0:00:34.4]} 16... Kf8 {[%clk 0:00:39.4]} 17. Nd5 {[%clk 0:00:34.1]} 17... Bxd5 {[%clk 0:00:37.9]} 18. Qxd5 {[%clk 0:00:33.8]} 18... Kg7 {[%clk 0:00:35.4]} 19. f4 {[%clk 0:00:33.5]} 19... Kf8 {[%clk 0:00:31.1]} 20. fxe5 {[%clk 0:00:32.4]} 20... a6 {[%clk 0:00:29.8]} 21. exd6 {[%clk 0:00:31.2]} 21... exd6 {[%clk 0:00:28.9]} 22. Bf6 {[%clk 0:00:23.2]} 22... Qd7 {[%clk 0:00:27.3]} 23. Qg5 {[%clk 0:00:22.8]} 23... Ke8 {[%clk 0:00:25.6]} 24. Qh6 {[%clk 0:00:22.3]} 24... Qe6 {[%clk 0:00:23.4]} 25. Qxh7 {[%clk 0:00:21.8]} 25... Rf8 {[%clk 0:00:21.5]} 26. Bg7 {[%clk 0:00:21]} 26... Ke7 {[%clk 0:00:18.8]} 27. Bxf8+ {[%clk 0:00:19.7]} 27... Rxf8 {[%clk 0:00:18.4]} 28. Qh4+ {[%clk 0:00:18.2]} 28... Ke8 {[%clk 0:00:17.1]} 29. Qf4 {[%clk 0:00:17.9]} 29... Qe5 {[%clk 0:00:15.9]} 30. Qe3 {[%clk 0:00:17.5]} 30... Qc5 {[%clk 0:00:14.3]} 31. Rad1 {[%clk 0:00:17.1]} 31... Qxe3+ {[%clk 0:00:12.7]} 32. Kh1 {[%clk 0:00:16.2]} 32... Qg5 {[%clk 0:00:11.4]} 33. Rfe1 {[%clk 0:00:15.5]} 33... Qe5 {[%clk 0:00:10.4]} 34. Rd5 {[%clk 0:00:13.3]} 34... Ke7 {[%clk 0:00:09.7]} 35. Rxe5+ {[%clk 0:00:12]} 35... dxe5 {[%clk 0:00:09.4]} 36. Rd1 {[%clk 0:00:11.2]} 36... f6 {[%clk 0:00:09]} 37. c4 {[%clk 0:00:10.7]} 37... Ke6 {[%clk 0:00:08.3]} 38. c5 {[%clk 0:00:10]} 38... f5 {[%clk 0:00:07.3]} 39. b4 {[%clk 0:00:09.7]} 39... fxe4 {[%clk 0:00:06.4]} 40. c6 {[%clk 0:00:08.9]} 40... Kf5 {[%clk 0:00:06]} 41. Rc1 {[%clk 0:00:08.4]} 41... Rc8 {[%clk 0:00:05.2]} 42. c7 {[%clk 0:00:07.6]} 42... Ke6 {[%clk 0:00:04.5]} 43. a4 {[%clk 0:00:07.1]} 43... Kd6 {[%clk 0:00:03.5]} 44. b5 {[%clk 0:00:06.8]} 44... axb5 {[%clk 0:00:02.4]} 45. axb5 {[%clk 0:00:06.6]} 45... Rxc7 {[%clk 0:00:01.8]} 46. Rxc7 {[%clk 0:00:04.1]} 46... Kxc7 {[%clk 0:00:01]} 47. b6+ {[%clk 0:00:03.9]} 47... Kxb6 {[%clk 0:00:00.6]} 48. g3 {[%clk 0:00:03.7]} 48... Kc5 {[%clk 0:00:00.3]} 49. h4 {[%clk 0:00:03.3]} 1-0

[Event "Live Chess"]
[Site "Chess.com"]
[Date "2010.12.10"]
[Round "-"]
[White "pjnk"]
[Black "hipposcottimus"]
[Result "1-0"]
[CurrentPosition "r1bq1k1r/pp1pRp1p/5PpQ/1p6/3p4/8/PPPP1PPP/RNB3K1 b - -"]
[Timezone "UTC"]
[ECO "C65"]
[ECOUrl "https://www.chess.com/openings/Ruy-Lopez-Opening-Berlin-Defense-4.O-O"]
[UTCDate "2010.12.10"]
[UTCTime "06:01:25"]
[WhiteElo "1656"]
[BlackElo "1663"]
[TimeControl "120+1"]
[Termination "pjnk won by resignation"]
[StartTime "06:01:25"]
[EndDate "2010.12.10"]
[EndTime "06:02:16"]
[Link "https://www.chess.com/game/live/75813869"]

1. e4 {[%clk 0:02:00]} 1... e5 {[%clk 0:02:00]} 2. Nf3 {[%clk 0:01:57.1]} 2... Nc6 {[%clk 0:02:00.7]} 3. Bb5 {[%clk 0:01:55.1]} 3... Nf6 {[%clk 0:02:01]} 4. O-O {[%clk 0:01:54.3]} 4... Nd4 {[%clk 0:02:01.6]} 5. Nxd4 {[%clk 0:01:51.9]} 5... exd4 {[%clk 0:02:02.2]} 6. e5 {[%clk 0:01:52.3]} 6... c6 {[%clk 0:02:02.4]} 7. exf6 {[%clk 0:01:48.9]} 7... cxb5 {[%clk 0:02:02.2]} 8. Re1+ {[%clk 0:01:47.4]} 8... Be7 {[%clk 0:02:02.7]} 9. Rxe7+ {[%clk 0:01:45.7]} 9... Kf8 {[%clk 0:02:03.1]} 10. Qh5 {[%clk 0:01:42]} 10... g6 {[%clk 0:01:55.4]} 11. Qh6+ {[%clk 0:01:40.2]} 1-0

[Event "Live Chess"]
[Site "Chess.com"]
[Date "2010.12.10"]
[Round "-"]
[White "deathrider2010"]
[Black "hipposcottimus"]
[Result "0-1"]
[CurrentPosition "r1bq1rk1/pp2bppp/5n2/8/3p4/1P1P1N2/1BK1BPPP/3R2NR b - -"]
[Timezone "UTC"]
[ECO "A00"]
[ECOUrl "https://www.chess.com/openings/Mieses-Opening-Reversed-Rat-Variation"]
[UTCDate "2010.12.10"]
[UTCTime "05:58:49"]
[WhiteElo "1500"]
[BlackElo "1672"]
[TimeControl "60"]
[Termination "hipposcottimus won by resignation"]
[StartTime "05:58:49"]
[EndDate "2010.12.10"]
[EndTime "05:59:29"]
[Link "https://www.chess.com/game/live/75813420"]

1. d3 {[%clk 0:01:00]} 1... e5 {[%clk 0:01:00]} 2. c3 {[%clk 0:00:59.7]} 2... d5 {[%clk 0:00:59.6]} 3. b3 {[%clk 0:00:59.4]} 3... c5 {[%clk 0:00:58.7]} 4. Bb2 {[%clk 0:00:59.1]} 4... Nc6 {[%clk 0:00:56.3]} 5. Nd2 {[%clk 0:00:58.8]} 5... d4 {[%clk 0:00:55]} 6. Qc2 {[%clk 0:00:58.6]} 6... Nf6 {[%clk 0:00:51.4]} 7. e3 {[%clk 0:00:57.4]} 7... Be7 {[%clk 0:00:48.6]} 8. exd4 {[%clk 0:00:56.1]} 8... cxd4 {[%clk 0:00:48.2]} 9. cxd4 {[%clk 0:00:54.2]} 9... exd4 {[%clk 0:00:48]} 10. O-O-O {[%clk 0:00:53.4]} 10... O-O {[%clk 0:00:47.6]} 11. Ndf3 {[%clk 0:00:50.1]} 11... Nb4 {[%clk 0:00:47.2]} 12. Qe2 {[%clk 0:00:48.4]} 12... Nxa2+ {[%clk 0:00:46.3]} 13. Kb1 {[%clk 0:00:46.7]} 13... Nc3+ {[%clk 0:00:45.9]} 14. Kc2 {[%clk 0:00:44.1]} 14... Nxe2 {[%clk 0:00:44.6]} 15. Bxe2 {[%clk 0:00:43]} 0-1